{"text_format":"1","workbook":"xlsx","n_sheets":4,"sheets":["Seite 1","Seite 2","Seite 3","Seite 4"],"not_rendered":{"charts":0,"images":2,"macros":1,"external_links":0,"defined_names":3,"comments":2,"pivot_tables":0},"unopened":[],"bounds":{"document_bytes":16777216,"sheet_cells":100000,"rows_first":2000,"rows_last":500,"rows_between":2000,"halvings":0,"cell_chars":16384,"cell_head_chars":4096},"cells_cut":0,"cells_raw":0,"read":"whole","date_system":"1904"}

{"sheet":"Seite 1","index":0,"n_rows":66,"n_cols":9,"rows_kept":66,"cut":false,"hidden":false,"merged":[[10,0,10,2],[11,0,11,2],[12,0,12,2],[13,0,13,2],[54,5,54,9],[17,8,17,9],[28,8,28,9],[22,5,22,9],[24,5,24,9],[26,5,26,9],[30,8,30,9],[36,8,36,9],[38,5,38,9],[42,5,42,9],[14,0,14,2],[56,8,56,9],[58,8,58,9],[44,5,44,9],[46,5,46,9],[48,8,48,9],[50,8,50,9],[52,5,52,9],[9,5,9,6],[11,5,11,6],[13,5,13,6],[15,5,15,6],[15,8,15,9]]}
[]
[]
[]
[]
[]
[]
[]
[]
["Steuerverwaltung,Postfach, 6301 Zug",null,null,null,null,{"$f":"IF(F10=\"\",\"Bitte Personen-Nr. ohne Bindestriche erfassen!\",IF(F10<100000000,\"Bitte korrekte Personen-Nr. erfassen\",IF(F10>300000000,\"Bitte korrekte Personen-Nr. erfassen\",\"\")))","v":"Bitte Personen-Nr. ohne Bindestriche erfassen!"}]
[]
[null,null,null,null,null,"Personen-Nr."]
[]
[null,null,null,null,null,"Gemeinde"]
[]
[null,null,null,null,null,"Registereintrag"]
[]
[null,null,null,null,null,"Zugestellt",null,null,"Sachbearbeitung"]
[]
[null,null,null,null,null,"Eingang",null,null,"Telefon"]
[]
[]
[]
["Bitte Wegleitung",null,"Hauptsitz"]
["beachten"]
[]
[]
[]
[]
["Wir ersuchen Sie, dieses Formular",null,"Zweigerniederlassungen",null,null,"Betriebsstätten / Ort"]
["wahrheitsgetreu auszufüllen,",null,"im In- und Ausland"]
["zu unterzeichnen und bis zum",null,null,null,null,"Liegenschaften / Ort"]
[]
[]
["2013-09-30",null,"Dauer des Geschäftsjahres",null,null,"Beginn",null,null,"Ende"]
[]
[]
["an folgende Adresse zu senden:",null,"Verwaltungsorgane",null,null,"Präsident/in"]
[null,null,"(Name, Adresse, Tel.)"]
[]
["Kantonale"]
["Steuerverwaltung Zug",null,null,null,null,"Verantwortlicher für das Rechnungswesen"]
["Abt. jur. Personen"]
["Postfach"]
["6301 Zug"]
[null,null,"Vertreter/in"]
[null,null,"bevollmächtigt zur Entgegennahme"]
["Der Steuererklärung ist die",null,"von Auflagen und Entscheiden"]
["unterzeichnete Jahresrechnung",null,"bzw. Veranlagungsverfügungen für"]
["(Erfolgsrechnung, Bilanz und",null,"diese Steuerperiode",null,null,"Telefon"]
["Anhang) des im Kalenderjahr 2011",null,"(Die Vollmacht gilt bis zum"]
["abgeschlossenen Geschäftsjahres",null,"schriftlichen Wiederruf)",null,null,"E-Mail"]
["beizulegen."]
[null,null,"Rückfragen in dieser"]
[null,null,"Steuersache sind zu"]
[null,null,"richten an:"]
[]
[null,null,null,null,null,"Telefon"]
[]
[null,null,null,null,null,"E-Mail"]
[]
[]
[]
["Veranlagung",null,"Besteuerungsart","Provisorisch",null,null,"Definitiv"]
["Kantonale Steuern"]
["Direkte Bundessteuer"]
["Steuerverwaltung, Bahnhofstrasse 26, 6300 Zug, Telefon 041 728 26 11, Telefax 041 728 26 96, www.zug.ch/tax"]

{"sheet":"Seite 2","index":1,"n_rows":50,"n_cols":5,"rows_kept":50,"cut":false,"hidden":false,"merged":[[1,2,1,3]]}
[]
[null,null,"2012 bzw. 2011 / 12"]
[null,"Reingewinn"," Direkte\n Bundessteuer\n Betrag in Franken"," Kantonale\n Steuern\n  Betrag in Franken","Code"]
[]
[1,"Reingewinn bzw. Verlust (-) gemäss Erfolgsrechnung des Geschäftsjahres",null,null,1000]
[]
[2,"Aufrechnungen"]
[2.1,"Geschäftsmässig nicht begründete Rückstellungen etc.",null,null,1010]
[2.2000000000000002,"Geschäftsmässig nicht begründete Abschreibungen  etc.",null,null,1020]
[2.2999999999999998,"Zuwendungen an Begünstigte",null,null,1030]
[null,null,null,null,1040]
[null,null,null,null,1050]
[]
[3,"Abzüge"]
[3.1,"Auflösung versteuerter stiller Reserven / Rückstellungen",null,null,1060]
[null,null,null,null,1070]
[null,null,null,null,1080]
[]
[4,"Steuerlich massgebender Reingewinn bzw. Verlust (-)"]
[null,"(Ziffer 1 bis Ziffer 2.3 abzüglich Ziffer 3.1)",{"$f":"C5+C8+C9+C10+C11+C12-C15-C16-C17","v":0},{"$f":"D5+D8+D9+D10+D11+D12-D15-D16-D17","v":0}]
[]
[5,"Nur für Vereine"]
[null,"Ermittlung eines allfälligen Mitgliederbeitragsüberschusses (steuerfrei)"]
[5.0999999999999996,"Mitgliederbeiträge",null,null,1090]
[null,null,null,null,1100]
[null,null,null,null,1110]
[]
[5.2,"Total Mitgliederbeiträge",{"$f":"SUM(C24:C26)","v":0},{"$f":"SUM(D24:D26)","v":0}]
[]
[5.3,"Sonstige Aufwendungen, die nicht der Erzielung steuerbarer Erträge dienen"]
[5.4,"Ordentliche Vereinsaktivitäten (Generalversammlung, Administration etc.)",null,null,1120]
[null,null,null,null,1130]
[null,null,null,null,1140]
[null,null,null,null,1150]
[]
[5.5,"Total sonstige Aufwendungen, die nicht der Erzielung steuerbarer Erträge dienen. Ziffer 5.4",{"$f":"SUM(C31:C34)","v":0},{"$f":"SUM(D31:D34)","v":0}]
[5.6,"Saldo aus Mitgliederbeiträgen abzüglich sonstige Aufwendungen, die nicht der\nErzielung steuerbarer Erträge dienen (Ziffer 5.2 abzüglich Ziffer 5.5)",{"$f":"C28-C36","v":0},{"$f":"D28-D36","v":0}]
[]
[5.7,"Uebertrag des positiven Saldos Ziffer 5.6",{"$f":"IF(C37>=0,C37,0)","v":0},{"$f":"IF(D37>=0,D37,0)","v":0}]
[]
[6,"Steuerlich massgebender Reingewinn bzw. Verlust (-) Ziffer 4 abzügl. Ziffer 5.7",{"$f":"C20-C39","v":0},{"$f":"D20-D39","v":0}]
[]
[7,"Vorjahresverluste: gemäss separater Aufstellung (Ziffer 20.0)",{"$f":"'Seite 3'!C43","v":0},{"$f":"'Seite 3'!D43","v":0},1700]
[]
[8,"Reingewinn bzw. Verlust (-) nach Verlustanrechnung "]
[null,"(Ziffer 6 abzüglich Ziffer 7)",{"$f":"C41+C43","v":0},{"$f":"D41+D43","v":0}]
[8.1,"Ausscheidung gemäss separater Aufstellung:\nDirekte Bundessteuer: für Anteile im Ausland\nKantonale Steuern: für Anteile im Ausland und in anderen Kantonen",null,null,1710]
[]
[9,"Steuerbarer Reingewinn bzw. Verlust (-) in der Schweiz bzw. im Kanton Zug"]
[null,"(Ziffer 8 abzüglich Ziffer 8.1)",{"$f":"IF(C46-C47>0,C46-C47,0)","v":0},{"$f":"IF(D46-D47>0,D46-D47,0)","v":0},100]

{"sheet":"Seite 3","index":2,"n_rows":60,"n_cols":9,"rows_kept":60,"cut":false,"hidden":false,"merged":[]}
[]
[null,null," zu Beginn des\n Geschäftsjahres\n 2012 bzw. 2011 / 12"," am Ende des\n Geschäftsjahres\n 2012 bzw. 2011 / 12"]
[null,"Stichtag ►"]
[null,null,"Betrag in Franken","Betrag in Franken","Code"]
[null,"Eigenkapital\n"]
[11,"Ausgewiesenes Eigenkapital gem. Jahresrechnung",null,null,3100]
[11.1,"+ / - Differenz zwischen Buchwert und Steuerwert von Immobilien",null,null,3110]
[11.2,"+ / - Differenz zwischen Buchwert und Steuerwert Wertschriften",null,null,3120]
[11.3,"+ / - Differenz zwischen Buchwert und Steuerwert Sachanlagen",null,null,3130]
[null,null,null,null,3140]
[]
[12,"Versteuerte stille Reserven"]
[12.1,"nicht geschäftsmässig begründete Rückstellungen",null,null,3150]
[12.2,"nicht geschäftsmässig begründete Abschreibungen",null,null,3160]
[null,null,null,null,3170]
[]
[13,"Gesamtes Eigenkapital ",{"$f":"SUM(C6:C16)","v":0},{"$f":"SUM(D6:D16)","v":0}]
[null,"(Ziffer 11 bis Ziffer 12.2"]
[]
[14,"Steuerfreier Betrag",80000,80000]
[]
[15,"Ausscheidung gemäss separater Aufstellung: "]
[null,"für Anteile im Ausland und in anderen Kantonen",null,null,3180]
[]
[null,"Steuerbares Kapital im Kanton Zug"]
[16,"(Ziffer 13 abzüglich Ziffer 14 und 15)",{"$f":"IF(C17-C20-C23>0,C17-C20-C23,0)","v":0},{"$f":"IF(D17-D20-D23>0,D17-D20-D23,0)","v":0},110]
[]
[]
[]
[null,"Angaben zu früheren Geschäftsjahren"," Direkte\n Bundessteuer\n Betrag in Franken"," Kantonale\n Steuern\n Betrag in Franken","Code"]
[]
[20,"Verlustverrechnung"]
[null,"Verluste (-) und Gewinne aus den sieben der Steuerperiode vorangegangenen"]
[null,"Geschäftsjahren"]
[20.7,"Geschäftsjahr 2005 bzw. 2004 / 05",null,null,207]
[20.6,"Geschäftsjahr 2006 bzw. 2005 / 06",null,null,206,{"$f":"IF(C35+C36<0,C35+C36,0)","v":0},{"$f":"IF(D35+D36<0,D35+D36,0)","v":0},{"$f":"IF(E35+E36<0,E35+E36,0)","v":0},{"$f":"IF(D35+D36<0,D35+D36,0)","v":0}]
[20.5,"Geschäftsjahr 2007 bzw. 2006 / 07",null,null,205,{"$f":"IF(F36+C37<0,F36+C37,0)","v":0},{"$f":"IF(G36+D37<0,G36+D37,0)","v":0},0,{"$f":"IF(I36+D37<0,I36+D37,0)","v":0}]
[20.399999999999999,"Geschäftsjahr 2008 bzw. 2007 / 08",null,null,204,{"$f":"IF(F37+C38<0,F37+C38,0)","v":0},0,0,{"$f":"IF(I37+D38<0,I37+D38,0)","v":0}]
[20.3,"Geschäftsjahr 2009 bzw. 2008 / 09",null,null,203,{"$f":"IF(F38+C39<0,F38+C39,0)","v":0},0,0,{"$f":"IF(I38+D39<0,I38+D39,0)","v":0}]
[20.2,"Geschäftsjahr 2010 bzw. 2009 / 10",null,null,202,{"$f":"IF(F39+C40<0,F39+C40,0)","v":0},0,0,{"$f":"IF(I39+D40<0,I39+D40,0)","v":0}]
[20.100000000000001,"Geschäftsjahr 2011 bzw. 2010 / 11",null,null,201,{"$f":"IF(F40+C41<0,F40+C41,0)","v":0},0,0,{"$f":"IF(I40+D41<0,I40+D41,0)","v":0}]
[]
["20.0","Verrechenbare Vorjahresverluste (in Ziffer 7 übertragen)",{"$f":"F41","v":0},{"$f":"I41","v":0},200]
[]
[]
[]
[null,"Beilagen"]
[]
[null,"Jahresrechnung 2012 bzw. 2011 / 12 (mit detaillierter Erfolgsrechnung, Bilanz und Anhang)"]
[null,"Aufstellung/Bescheinigung über Bezüge von Verwaltungs- und Stiftungsräten und Organen der Geschäftsleitung"]
[null,"Aufstellungen über Forderungen (nur für Stiftungen)"]
[null,"Aufstellungen über Verbindlichkeiten (nur für Stiftungen)"]
[null,"Depotauszüge"]
[null,"Steuerausscheidung"]
[]
[]
[]
[]
[null,"Die Richtigkeit und Vollständigkeit der Angaben bestätigt:"]
[null,"Ort, Datum                                           Rechtsgültige Unterschrift"]

{"sheet":"Seite 4","index":3,"n_rows":0,"n_cols":0,"rows_kept":0,"cut":false,"hidden":false,"merged":[]}